fUST/lending_fUST_20250302
["ID","MTS","AMOUNT","RATE_DAILY","PERIOD"]
[355102260,1740893443569,-500.0,0.00023362,2]
[355102261,1740893443578,-500.0,0.00023362,2]
[355102262,1740893443588,-500.0,0.00023362,2]
[355102263,1740893443598,-1196.62,0.00023362,2]
[355102264,1740893443607,-29395.73,0.00023362,2]
[355102265,1740893443617,-500.0,0.00023362,2]
[355102266,1740893443628,-830.9,0.00023362,2]
[355102267,1740893443638,-500.0,0.00023363,2]
[355102268,1740893443648,-500.0,0.00023363,2]
[355102269,1740893443658,-500.0,0.00023363,2]
[355102270,1740893443668,-278.6,0.00023363,2]
[355102271,1740893443678,-500.0,0.00023363,2]
[355102272,1740893443688,-500.0,0.00023363,2]
[355102273,1740893443698,-577.0,0.00023363,2]
[355102274,1740893443708,-500.0,0.00023363,2]
[355102275,1740893443718,-500.0,0.00023363,2]
[355102276,1740893443728,-525.08,0.00023365,2]
[355102277,1740893443738,-377.63158148,0.00023536,2]
[355102278,1740893443748,-500.0,0.00023569,2]
[355102279,1740893443759,-1851.93,0.00023635,2]
[355102280,1740893443768,-1012.52,0.00023635,2]
[355102281,1740893443778,-500.0,0.00023635,2]
[355102282,1740893443788,-500.0,0.00023635,2]
[355102283,1740893443798,-500.0,0.00023635,2]
[355102284,1740893443808,-500.0,0.00023635,2]
[355102285,1740893443818,-1127.62,0.00023635,2]
[355102286,1740893443828,-500.0,0.00023635,2]
[355102287,1740893443838,-2363.03,0.00023635,2]
[355102288,1740893443848,-2725.78,0.00023635,2]
[355102289,1740893443858,-500.0,0.00023635,2]
[355102290,1740893443868,-1477.59,0.00023635,2]
[355102291,1740893443877,-864.7,0.00023635,2]
[355102292,1740893443887,-500.0,0.00023636,2]
[355102293,1740893443896,-500.0,0.00023636,2]
[355102294,1740893443906,-500.0,0.00023636,2]
[355102295,1740893443915,-500.0,0.00023636,2]
[355102296,1740893443926,-500.0,0.00023636,2]
[355102297,1740893443935,-500.0,0.00023636,2]
[355102298,1740893443945,-500.0,0.00023636,2]
[355102299,1740893443955,-500.0,0.00023636,2]
[355102300,1740893443966,-500.0,0.00023636,2]
[355102301,1740893443975,-500.0,0.00023636,2]
[355102302,1740893443985,-500.0,0.00023636,2]
[355102303,1740893443995,-500.0,0.00023636,2]
[355102304,1740893444005,-500.0,0.00023636,2]
[355102305,1740893444014,-500.0,0.00023636,2]
[355102306,1740893444024,-500.0,0.00023636,2]
[355102307,1740893444034,-500.0,0.00023636,2]
[355102308,1740893444044,-500.0,0.00023636,2]
[355102309,1740893444055,-500.0,0.00023636,2]
[355102310,1740893444065,-500.0,0.00023636,2]
[355102311,1740893444075,-530.18,0.00023636,2]
[355102312,1740893444085,-931.01,0.00023636,2]
[355102313,1740893444095,-590.83,0.00023636,2]
[355102314,1740893444105,-1480.77,0.00023636,2]
[355102315,1740893444115,-3646.62,0.00023636,2]
[355102316,1740893444125,-500.0,0.00023636,2]
[355102318,1740893444135,-500.0,0.00023636,2]
[355102319,1740893444145,-500.0,0.00023636,2]
[355102320,1740893444156,-500.0,0.00023636,2]
[355102321,1740893444167,-1675.46,0.00023636,2]
[355102322,1740893444177,-500.0,0.00023636,2]
[355102323,1740893444187,-500.0,0.00023636,2]
[355102324,1740893444196,-581.11,0.00023636,2]
[355102325,1740893444206,-500.0,0.00023636,2]
[355102326,1740893444216,-500.0,0.00023636,2]
[355102327,1740893444226,-500.0,0.00023636,2]
[355102328,1740893444236,-500.0,0.00023636,2]
[355102329,1740893444246,-500.0,0.00023636,2]
[355102330,1740893444256,-500.0,0.00023636,2]
[355102331,1740893444265,-500.0,0.00023636,2]
[355102332,1740893444275,-1790.99,0.00023636,2]
[355102333,1740893444285,-878.65,0.00023636,2]
[355102334,1740893444295,-500.0,0.00023636,2]
[355102335,1740893444304,-2456.63,0.00023636,2]
[355102336,1740893444314,-500.0,0.00023636,2]
[355102337,1740893444324,-552.88,0.00023636,2]
[355102338,1740893444334,-500.0,0.00023636,2]
[355102339,1740893444344,-665.32,0.00023636,2]
[355102340,1740893444354,-500.0,0.00023636,2]
[355102341,1740893444364,-609.4,0.00023636,2]
[355102342,1740893444375,-500.0,0.00023636,2]
[355102343,1740893444385,-500.0,0.00023636,2]
[355102344,1740893444394,-500.0,0.00023636,2]
[355102345,1740893444405,-1196.62,0.00023636,2]
[355102346,1740893444415,-29395.73,0.00023636,2]
[355102347,1740893444424,-500.0,0.00023636,2]
[355102348,1740893444434,-830.9,0.00023636,2]
[355102349,1740893444444,-168.8,0.00023637,2]
[355102350,1740893444453,-500.0,0.00023637,2]
[355102351,1740893444463,-349.63,0.00023637,2]
[355102352,1740893444476,-500.0,0.00023637,2]
[355102353,1740893444486,-500.0,0.00023637,2]
[355102354,1740893444496,-500.0,0.00023637,2]
[355102355,1740893444560,-500.0,0.00023637,2]
[355102356,1740893444571,-488.24527153,0.00023896,2]
[355102357,1740893444580,-500.0,0.00023896,2]
[355102358,1740893444591,-1851.93,0.00023909,2]
[355102359,1740893444600,-1012.52,0.00023909,2]
[355102360,1740893444611,-500.0,0.00023909,2]
[355102361,1740893444620,-500.0,0.00023909,2]
[355102362,1740893444631,-500.0,0.00023909,2]
[355102363,1740893444640,-500.0,0.00023909,2]
[355102364,1740893444650,-1127.62,0.00023909,2]
[355102365,1740893444660,-500.0,0.00023909,2]
[355102366,1740893444670,-2363.03,0.00023909,2]
[355102367,1740893444680,-2725.78,0.00023909,2]
[355102368,1740893444690,-500.0,0.00023909,2]
[355102369,1740893444700,-1477.59,0.00023909,2]
[355102370,1740893444709,-864.7,0.00023909,2]
[355102371,1740893444718,-500.0,0.0002391,2]
[355102372,1740893444729,-500.0,0.0002391,2]
[355102373,1740893444738,-500.0,0.0002391,2]
[355102374,1740893444747,-500.0,0.0002391,2]
[355102375,1740893444756,-500.0,0.0002391,2]
[355102376,1740893444766,-500.0,0.0002391,2]
[355102377,1740893444775,-500.0,0.0002391,2]
[355102378,1740893444785,-500.0,0.0002391,2]
[355102379,1740893444794,-500.0,0.0002391,2]
[355102380,1740893444804,-500.0,0.0002391,2]
[355102381,1740893444814,-500.0,0.0002391,2]
[355102382,1740893444824,-409.66952534,0.0002391,2]
[355102383,1740893444834,-500.0,0.0002391,2]
[355102384,1740893444843,-500.0,0.0002391,2]
[355102385,1740893444853,-500.0,0.0002391,2]
[355102386,1740893444862,-500.0,0.0002391,2]
[355102387,1740893444872,-500.0,0.0002391,2]
[355102388,1740893444882,-500.0,0.0002391,2]
[355102389,1740893444891,-500.0,0.0002391,2]
[355102390,1740893444902,-931.01,0.0002391,2]
[355102391,1740893444911,-590.83,0.0002391,2]
[355102392,1740893444922,-1480.77,0.0002391,2]
[355102393,1740893444932,-3646.62,0.0002391,2]
[355102394,1740893444942,-500.0,0.0002391,2]
[355102395,1740893444951,-500.0,0.0002391,2]
[355102396,1740893444961,-411.18,0.0002391,2]
[355102397,1740893444971,-500.0,0.0002391,2]
[355102398,1740893444980,-1675.46,0.0002391,2]
[355102399,1740893444990,-500.0,0.0002391,2]
[355102400,1740893445000,-581.11,0.0002391,2]
[355102401,1740893445009,-500.0,0.0002391,2]
[355102402,1740893445019,-500.0,0.0002391,2]
[355102403,1740893445029,-500.0,0.0002391,2]
[355102404,1740893445039,-500.0,0.0002391,2]
[355102405,1740893445052,-500.0,0.0002391,2]
[355102406,1740893445063,-448.83,0.0002391,2]
[355102407,1740893445073,-500.0,0.0002391,2]
[355102408,1740893445083,-1790.99,0.0002391,2]
[355102409,1740893445093,-878.65,0.0002391,2]
[355102410,1740893445102,-500.0,0.0002391,2]
[355102411,1740893445112,-2456.63,0.0002391,2]
[355102412,1740893445122,-500.0,0.0002391,2]
[355102413,1740893445131,-552.88,0.0002391,2]
[355102414,1740893445140,-500.0,0.0002391,2]
[355102415,1740893445151,-665.32,0.0002391,2]
[355102416,1740893445160,-591.06,0.0002391,2]
[355102417,1740893445170,-609.4,0.0002391,2]
[355102418,1740893445179,-500.0,0.0002391,2]
[355102419,1740893445189,-500.0,0.0002391,2]
[355102420,1740893445198,-500.0,0.0002391,2]
[355102421,1740893445209,-1196.62,0.0002391,2]
[355102422,1740893445219,-29395.73,0.0002391,2]
[355102423,1740893445228,-830.9,0.0002391,2]
[355102424,1740893445237,-500.0,0.00023911,2]
[355102425,1740893445247,-500.0,0.00023911,2]
[355102426,1740893445256,-500.0,0.00023911,2]
[355102427,1740893445265,-320.94,0.00023911,2]
[355102428,1740893445274,-500.0,0.00023911,2]
[355102429,1740893445284,-511.30943113,0.00023973,2]
[355102430,1740893445293,-500.0,0.00023973,2]
[355102431,1740893445303,-500.0,0.00023973,2]
[355102432,1740893445313,-500.0,0.00023973,2]
[355102433,1740893445323,-500.0,0.00023973,2]
[355102434,1740893445333,-41334.43461128,0.00024,2]
[355102435,1740893445344,-1851.93,0.00024183,2]
[355102436,1740893445354,-1012.52,0.00024183,2]
[355102437,1740893445363,-500.0,0.00024183,2]
[355102438,1740893445373,-500.0,0.00024183,2]
[355102439,1740893445384,-500.0,0.00024183,2]
[355102440,1740893445393,-500.0,0.00024183,2]
[355102441,1740893445403,-1127.62,0.00024183,2]
[355102442,1740893445412,-500.0,0.00024183,2]
[355102443,1740893445422,-2363.03,0.00024183,2]
[355102444,1740893445432,-2725.78,0.00024183,2]
[355102445,1740893445442,-500.0,0.00024183,2]
[355102446,1740893445452,-1477.59,0.00024183,2]
[355102447,1740893445463,-864.7,0.00024183,2]
[355102448,1740893445476,-500.0,0.00024184,2]
[355102449,1740893445486,-500.0,0.00024184,2]
[355102450,1740893445495,-500.0,0.00024184,2]
[355102451,1740893445505,-356.92,0.00024184,2]
[355102452,1740893445515,-500.0,0.00024184,2]
[355102453,1740893445524,-500.0,0.00024184,2]
[355102454,1740893445533,-521.21,0.00024184,2]
[355102455,1740893445543,-500.0,0.00024184,2]
[355102456,1740893445553,-500.0,0.00024184,2]
[355102457,1740893445563,-500.0,0.00024184,2]
[355102458,1740893445572,-500.0,0.00024184,2]
[355102459,1740893445581,-500.0,0.00024184,2]
[355102460,1740893445591,-500.0,0.00024184,2]
[355102461,1740893445600,-500.0,0.00024184,2]
[355102462,1740893445610,-500.0,0.00024184,2]
[355102463,1740893445619,-500.0,0.00024184,2]
[355102464,1740893445628,-500.0,0.00024184,2]
[355102465,1740893445638,-500.0,0.00024184,2]
[355102466,1740893445648,-931.01,0.00024184,2]
[355102467,1740893445658,-590.83,0.00024184,2]
[355102468,1740893445668,-1480.77,0.00024184,2]
[355102469,1740893445677,-3646.62,0.00024184,2]
[355102470,1740893445688,-500.0,0.00024184,2]
[355102471,1740893445700,-500.0,0.00024184,2]
[355102472,1740893445710,-553.48,0.00024184,2]
[355102473,1740893445719,-1675.46,0.00024184,2]
[355102474,1740893445728,-500.0,0.00024184,2]
[355102475,1740893445738,-581.11,0.00024184,2]
[355102476,1740893445747,-500.0,0.00024184,2]
[355102477,1740893445757,-500.0,0.00024184,2]
[355102478,1740893445767,-500.0,0.00024184,2]
[355102479,1740893445776,-500.0,0.00024184,2]
[355102480,1740893445786,-500.0,0.00024184,2]
[355102481,1740893445796,-500.0,0.00024184,2]
[355102483,1740893445806,-1790.99,0.00024184,2]
[355102484,1740893445815,-878.65,0.00024184,2]
[355102485,1740893445825,-500.0,0.00024184,2]
[355102486,1740893445834,-2456.63,0.00024184,2]
[355102487,1740893445844,-500.0,0.00024184,2]
[355102489,1740893445854,-552.88,0.00024184,2]
[355102490,1740893445863,-500.0,0.00024184,2]
[355102491,1740893445872,-665.32,0.00024184,2]
[355102492,1740893445883,-609.4,0.00024184,2]
[355102493,1740893445892,-500.0,0.00024184,2]
[355102494,1740893445902,-500.0,0.00024184,2]
[355102495,1740893445912,-500.0,0.00024184,2]
[355102496,1740893445922,-1196.62,0.00024184,2]
[355102497,1740893445932,-29395.73,0.00024184,2]
[355102498,1740893445941,-830.9,0.00024184,2]
[355102499,1740893445951,-267.35,0.00024185,2]
[355102500,1740893445960,-500.0,0.00024185,2]
[355102501,1740893445970,-500.0,0.00024185,2]
[355102502,1740893445980,-378.94,0.00024185,2]
[355102503,1740893445990,-420.0,0.00024188,2]
[355102504,1740893446000,-1851.93,0.00024457,2]
[355102505,1740893446010,-1012.52,0.00024457,2]
[355102506,1740893446019,-500.0,0.00024457,2]
[355102507,1740893446029,-500.0,0.00024457,2]
[355102508,1740893446039,-500.0,0.00024457,2]
[355102509,1740893446049,-1127.62,0.00024457,2]
[355102510,1740893446058,-500.0,0.00024457,2]
[355102511,1740893446068,-2363.03,0.00024457,2]
[355102512,1740893446078,-2725.78,0.00024457,2]
[355102513,1740893446087,-500.0,0.00024457,2]
[355102514,1740893446098,-1477.59,0.00024457,2]
[355102515,1740893446107,-864.7,0.00024457,2]
[355102516,1740893446117,-500.0,0.00024458,2]
[355102517,1740893446126,-500.0,0.00024458,2]
[355102518,1740893446136,-500.0,0.00024458,2]
[355102519,1740893446146,-500.0,0.00024458,2]
[355102520,1740893446156,-495.32,0.00024458,2]
[355102521,1740893446165,-500.0,0.00024458,2]
[355102522,1740893446175,-524.79,0.00024458,2]
[355102523,1740893446185,-500.0,0.00024458,2]
[355102524,1740893446199,-500.0,0.00024458,2]
[355102525,1740893446209,-500.0,0.00024458,2]
[355102526,1740893446219,-319.9,0.00024458,2]
[355102527,1740893446229,-500.0,0.00024458,2]
[355102528,1740893446239,-500.0,0.00024458,2]
[355102529,1740893446248,-500.0,0.00024458,2]
[355102530,1740893446258,-931.01,0.00024458,2]
[355102531,1740893446268,-590.83,0.00024458,2]
[355102532,1740893446278,-1480.77,0.00024458,2]
[355102533,1740893446288,-3646.62,0.00024458,2]
[355102534,1740893446298,-500.0,0.00024458,2]
[355102535,1740893446308,-351.2,0.00024458,2]
[355102536,1740893446318,-1675.46,0.00024458,2]
[355102537,1740893446329,-500.0,0.00024458,2]
[355102538,1740893446339,-581.11,0.00024458,2]
[355102539,1740893446349,-500.0,0.00024458,2]
[355102540,1740893446360,-500.0,0.00024458,2]
[355102541,1740893446371,-500.0,0.00024458,2]
[355102542,1740893446380,-500.0,0.00024458,2]
[355102543,1740893446390,-500.0,0.00024458,2]
[355102544,1740893446400,-500.0,0.00024458,2]
[355102545,1740893446409,-1790.99,0.00024458,2]
[355102546,1740893446419,-878.65,0.00024458,2]
[355102547,1740893446429,-500.0,0.00024458,2]
[355102548,1740893446439,-2456.63,0.00024458,2]
[355102549,1740893446448,-500.0,0.00024458,2]
[355102550,1740893446457,-552.88,0.00024458,2]
[355102551,1740893446469,-500.0,0.00024458,2]
[355102552,1740893446478,-665.32,0.00024458,2]
[355102553,1740893446487,-609.4,0.00024458,2]
[355102554,1740893446497,-500.0,0.00024458,2]
[355102555,1740893446507,-1196.62,0.00024458,2]
[355102556,1740893446516,-29395.73,0.00024458,2]
[355102557,1740893446525,-830.9,0.00024458,2]
[355102558,1740893446535,-269.67,0.00024459,2]
[355102559,1740893446546,-500.0,0.00024459,2]
[355102560,1740893446555,-204.04207536,0.000245,3]
[355102561,1740893446565,-204.04207536,0.000245,3]
[355102562,1740893446575,-500.0,0.00024658,2]
[355102563,1740893446584,-288.67811289,0.00024658,2]
[355102564,1740893446594,-816.37569834,0.00024658,2]
[355102565,1740893446603,-816.37569834,0.00024658,2]
[355102566,1740893446613,-816.37569834,0.00024658,2]
[355102567,1740893446622,-816.37569834,0.00024658,2]
[355102568,1740893446632,-816.37569834,0.00024658,2]
[355102569,1740893446642,-816.37569834,0.00024658,2]
[355102570,1740893446652,-816.37569834,0.00024658,2]
[355102571,1740893446662,-816.37569834,0.00024658,2]
[355102572,1740893446671,-816.37569834,0.00024658,2]
[355102573,1740893446681,-816.37569834,0.00024658,2]
[355102574,1740893446690,-816.37569834,0.00024658,2]
[355102575,1740893446700,-816.37569834,0.00024658,2]
[355102576,1740893446709,-816.37569834,0.00024658,2]
[355102577,1740893446719,-816.37569834,0.00024658,2]
[355102578,1740893446728,-816.37569834,0.00024658,2]
[355102579,1740893446738,-816.37569834,0.00024658,2]
[355102580,1740893446747,-816.37569834,0.00024658,2]
[355102581,1740893446757,-816.37569834,0.00024658,2]
[355102582,1740893446766,-816.37569834,0.00024658,2]
[355102583,1740893446776,-816.37569834,0.00024658,2]
[355102584,1740893446786,-816.37569834,0.00024658,2]
[355102585,1740893446795,-816.37569834,0.00024658,2]
[355102586,1740893446806,-816.37569834,0.00024658,2]
[355102587,1740893446815,-816.37569834,0.00024658,2]
[355102588,1740893446825,-816.37569834,0.00024658,2]
[355102589,1740893446835,-816.37569834,0.00024658,2]
[355102590,1740893446844,-816.37569834,0.00024658,2]
[355102591,1740893446854,-816.37569834,0.00024658,2]
[355102592,1740893446863,-816.37569834,0.00024658,2]
[355102593,1740893446873,-816.37569834,0.00024658,2]
[355102594,1740893446883,-816.37569834,0.00024658,2]
[355102595,1740893446892,-816.37569834,0.00024658,2]
[355102596,1740893446902,-816.37569834,0.00024658,2]
[355102597,1740893446912,-816.37569834,0.00024658,2]
[355102598,1740893446921,-816.37569834,0.00024658,2]
[355102599,1740893446931,-816.37569834,0.00024658,2]
[355102600,1740893446940,-816.37569834,0.00024658,2]
[355102601,1740893446950,-816.37569834,0.00024658,2]
[355102602,1740893446961,-816.37569834,0.00024658,2]
[355102603,1740893446971,-816.37569834,0.00024658,2]
[355102604,1740893446982,-816.37569834,0.00024658,2]
[355102605,1740893446991,-816.37569834,0.00024658,2]
[355102606,1740893447003,-816.37569834,0.00024658,2]
[355102607,1740893447013,-1851.93,0.00024731,2]
[355102608,1740893447024,-1012.52,0.00024731,2]
[355102609,1740893447034,-500.0,0.00024731,2]
[355102610,1740893447045,-500.0,0.00024731,2]
[355102611,1740893447055,-500.0,0.00024731,2]
[355102612,1740893447065,-1127.62,0.00024731,2]
[355102613,1740893447074,-500.0,0.00024731,2]
[355102614,1740893447084,-2363.03,0.00024731,2]
[355102615,1740893447094,-2725.78,0.00024731,2]
[355102616,1740893447104,-500.0,0.00024731,2]
[355102617,1740893447113,-1477.59,0.00024731,2]
[355102618,1740893447124,-864.7,0.00024731,2]
[355102619,1740893447133,-500.0,0.00024732,2]
[355102620,1740893447144,-500.0,0.00024732,2]
[355102621,1740893447154,-500.0,0.00024732,2]
[355102622,1740893447164,-500.0,0.00024732,2]
[355102623,1740893447175,-500.0,0.00024732,2]
[355102624,1740893447185,-500.0,0.00024732,2]
[355102625,1740893447195,-500.0,0.00024732,2]
[355102626,1740893447205,-500.0,0.00024732,2]
[355102627,1740893447216,-500.0,0.00024732,2]
[355102628,1740893447226,-500.0,0.00024732,2]
[355102629,1740893447236,-500.0,0.00024732,2]
[355102630,1740893447246,-931.01,0.00024732,2]
[355102631,1740893447256,-590.83,0.00024732,2]
[355102632,1740893447267,-1480.77,0.00024732,2]
[355102633,1740893447277,-3646.62,0.00024732,2]
[355102634,1740893447288,-500.0,0.00024732,2]
[355102635,1740893447298,-1675.46,0.00024732,2]
[355102636,1740893447308,-500.0,0.00024732,2]
[355102637,1740893447318,-581.11,0.00024732,2]
[355102638,1740893447328,-500.0,0.00024732,2]
[355102639,1740893447339,-495.69,0.00024732,2]
[355102640,1740893447348,-500.0,0.00024732,2]
[355102641,1740893447359,-500.0,0.00024732,2]
[355102642,1740893447370,-500.0,0.00024732,2]
[355102643,1740893447380,-217.72,0.00024732,2]
[355102644,1740893447390,-1790.99,0.00024732,2]
[355102645,1740893447399,-878.65,0.00024732,2]
[355102646,1740893447410,-500.0,0.00024732,2]
[355102647,1740893447419,-2456.63,0.00024732,2]
[355102648,1740893447430,-446.55,0.00024732,2]
[355102649,1740893447440,-552.88,0.00024732,2]
[355102650,1740893447450,-500.0,0.00024732,2]
[355102651,1740893447459,-665.32,0.00024732,2]
[355102652,1740893447472,-609.4,0.00024732,2]
[355102653,1740893447483,-500.0,0.00024732,2]
[355102654,1740893447493,-1196.62,0.00024732,2]
[355102655,1740893447503,-29395.73,0.00024732,2]
[355102656,1740893447515,-830.9,0.00024732,2]
[355102657,1740893447525,-500.0,0.00024733,2]
[355102658,1740893447534,-500.0,0.00024743,2]
[355102659,1740893447546,-19629.85965445,0.00024776,2]
[355102660,1740893447556,-160.0,0.00024776,2]
[355102661,1740893447566,-160.0,0.00024776,2]
[355102662,1740893447576,-160.0,0.00024776,2]
[355102663,1740893447586,-377.63158147,0.00024889,2]
[355102664,1740893447596,-273.04541604,0.00024895,2]
[355102665,1740893447606,-832.68857075,0.00024947,2]
[355102666,1740893447617,-204.96111307,0.00025,2]
[355102667,1740893447627,-834.33415826,0.00025,2]
[355102668,1740893447637,-1851.93,0.00025005,2]
[355102669,1740893447648,-1012.52,0.00025005,2]
[355102670,1740893447658,-500.0,0.00025005,2]
[355102671,1740893447668,-500.0,0.00025005,2]
[355102672,1740893447678,-500.0,0.00025005,2]
[355102673,1740893447688,-1127.62,0.00025005,2]
[355102674,1740893447699,-375.51,0.00025005,2]
[355102675,1740893447709,-2363.03,0.00025005,2]
[355102676,1740893447719,-2725.78,0.00025005,2]
[355102677,1740893447730,-500.0,0.00025005,2]
[355102678,1740893447740,-1477.59,0.00025005,2]
[355102679,1740893447750,-864.7,0.00025005,2]
[355102680,1740893447760,-413.94028264,0.00025006,2]
[355102681,1740893447770,-500.0,0.00025006,2]
[355102682,1740893447780,-610.56,0.00025006,2]
[355102683,1740893447790,-500.0,0.00025006,2]
[355102684,1740893447800,-500.0,0.00025006,2]
[355102685,1740893447810,-500.0,0.00025006,2]
[355102686,1740893447820,-330.0,0.00025006,2]
[355102687,1740893447830,-191.28,0.00025006,2]
[355102688,1740893447840,-500.0,0.00025006,2]
[355102689,1740893447850,-500.0,0.00025006,2]
[355102690,1740893447860,-500.0,0.00025006,2]
[355102691,1740893447870,-931.01,0.00025006,2]
[355102692,1740893447880,-590.83,0.00025006,2]
[355102693,1740893447891,-1480.77,0.00025006,2]
[355102694,1740893447902,-3646.62,0.00025006,2]
[355102695,1740893447912,-456.8,0.00025006,2]
[355102696,1740893447922,-1675.46,0.00025006,2]
[355102697,1740893447932,-500.0,0.00025006,2]
[355102698,1740893447942,-581.11,0.00025006,2]
[355102699,1740893447952,-500.0,0.00025006,2]
[355102700,1740893447963,-479.68,0.00025006,2]
[355102701,1740893447972,-500.0,0.00025006,2]
[355102702,1740893447982,-500.0,0.00025006,2]
[355102703,1740893447992,-1790.99,0.00025006,2]
[355102704,1740893448002,-878.65,0.00025006,2]
[355102705,1740893448012,-500.0,0.00025006,2]
[355102706,1740893448023,-2456.63,0.00025006,2]
[355102707,1740893448033,-552.88,0.00025006,2]
[355102708,1740893448043,-427.24,0.00025006,2]
[355102709,1740893448054,-665.32,0.00025006,2]
[355102710,1740893448064,-609.4,0.00025006,2]
[355102711,1740893448075,-500.0,0.00025006,2]
[355102712,1740893448086,-1196.62,0.00025006,2]
[355102713,1740893448097,-29395.73,0.00025006,2]
[355102714,1740893448108,-830.9,0.00025006,2]
[355102715,1740893448118,-208.05,0.00025007,2]
[355102716,1740893448128,-1851.93,0.00025279,2]
[355102717,1740893448139,-1012.52,0.00025279,2]
[355102718,1740893448150,-500.0,0.00025279,2]
[355102719,1740893448160,-500.0,0.00025279,2]
[355102720,1740893448170,-500.0,0.00025279,2]
[355102721,1740893448180,-1127.62,0.00025279,2]
[355102722,1740893448190,-2363.03,0.00025279,2]
[355102723,1740893448201,-2725.78,0.00025279,2]
[355102724,1740893448211,-500.0,0.00025279,2]
[355102725,1740893448222,-1477.59,0.00025279,2]
[355102726,1740893448233,-864.7,0.00025279,2]
[355102727,1740893448243,-500.0,0.0002528,2]
[355102728,1740893448254,-500.0,0.0002528,2]
[355102729,1740893448264,-500.0,0.0002528,2]
[355102730,1740893448274,-500.0,0.0002528,2]
[355102731,1740893448284,-500.0,0.0002528,2]
[355102732,1740893448294,-500.0,0.0002528,2]
[355102733,1740893448304,-500.0,0.0002528,2]
[355102734,1740893448314,-931.01,0.0002528,2]
[355102735,1740893448324,-590.83,0.0002528,2]
[355102736,1740893448335,-1480.77,0.0002528,2]
[355102737,1740893448346,-3646.62,0.0002528,2]
[355102738,1740893448356,-1675.46,0.0002528,2]
[355102739,1740893448366,-500.0,0.0002528,2]
[355102740,1740893448376,-581.11,0.0002528,2]
[355102741,1740893448386,-500.0,0.0002528,2]
[355102742,1740893448396,-500.0,0.0002528,2]
[355102743,1740893448406,-500.0,0.0002528,2]
[355102744,1740893448416,-1790.99,0.0002528,2]
[355102745,1740893448426,-878.65,0.0002528,2]
[355102746,1740893448436,-500.0,0.0002528,2]
[355102747,1740893448447,-2456.63,0.0002528,2]
[355102748,1740893448457,-552.88,0.0002528,2]
[355102749,1740893448470,-665.32,0.0002528,2]
[355102750,1740893448480,-609.4,0.0002528,2]
[355102751,1740893448490,-618.75,0.0002528,2]
[355102752,1740893448500,-1196.62,0.0002528,2]
[355102753,1740893448510,-29395.73,0.0002528,2]
[355102754,1740893448521,-830.9,0.0002528,2]
[355102755,1740893448530,-500.0,0.00025288,2]
[355102756,1740893448540,-500.0,0.00025288,2]
[355102757,1740893448551,-500.0,0.00025288,2]
[355102758,1740893448562,-509.09062463,0.00025288,2]
[355102759,1740893448572,-500.0,0.00025288,2]
[355102760,1740893448582,-500.0,0.00025288,2]
[355102761,1740893448593,-500.0,0.00025288,2]
[355102762,1740893448603,-500.0,0.00025288,2]